fUSD/lending_fUSD_20260503
["ID","MTS","AMOUNT","RATE_DAILY","PERIOD"]
[421478773,1777740682000,-500.0,0.00032876,2]
[421478781,1777740682000,-779.5,0.00032876,2]
[421478804,1777740682000,-500.0,0.00032876,2]
[421478857,1777740682000,-500.0,0.00032876,2]
[421478801,1777740682000,-500.0,0.00032876,2]
[421478842,1777740682000,-862.29,0.00032876,2]
[421478832,1777740682000,-4974.81,0.00032876,2]
[421478839,1777740682000,-728.25,0.00032876,2]
[421478840,1777740682000,-500.0,0.00032876,2]
[421478837,1777740682000,-500.0,0.00032876,2]
[421478838,1777740682000,-500.0,0.00032876,2]
[421478843,1777740682000,-500.0,0.00032876,2]
[421478848,1777740682000,-500.0,0.00032876,2]
[421478846,1777740682000,-2676.11,0.00032876,2]
[421478855,1777740682000,-500.0,0.00032876,2]
[421478849,1777740682000,-500.0,0.00032876,2]
[421478847,1777740682000,-500.0,0.00032876,2]
[421478844,1777740682000,-533.87,0.00032876,2]
[421478845,1777740682000,-842.66,0.00032876,2]
[421478850,1777740682000,-785.63,0.00032876,2]
[421478856,1777740682000,-500.0,0.00032876,2]
[421478854,1777740682000,-1058.93,0.00032876,2]
[421478852,1777740682000,-500.0,0.00032876,2]
[421478851,1777740682000,-500.0,0.00032876,2]
[421478853,1777740682000,-742.17,0.00032876,2]
[421478858,1777740682000,-500.0,0.00032876,2]
[421478861,1777740682000,-500.0,0.00032876,2]
[421478860,1777740682000,-500.0,0.00032876,2]
[421478859,1777740682000,-318.76231536,0.00032876,2]
[421478862,1777740682000,-500.0,0.00032876,2]
[421478863,1777740682000,-156.57510006,0.00032876,2]
[421478803,1777740682000,-500.0,0.00032876,2]
[421478841,1777740682000,-890.68,0.00032876,2]
[421478835,1777740682000,-631.78413279,0.00032876,2]
[421478864,1777740682000,-602.56,0.00032876,2]
[421478836,1777740682000,-848.48,0.00032876,2]
[421478834,1777740682000,-504.34763902,0.00032876,2]
[421478802,1777740682000,-604.96,0.00032876,2]
[421478809,1777740682000,-500.0,0.00032876,2]
[421478818,1777740682000,-500.0,0.00032876,2]
[421478808,1777740682000,-500.0,0.00032876,2]
[421478807,1777740682000,-624.68,0.00032876,2]
[421478815,1777740682000,-500.0,0.00032876,2]
[421478814,1777740682000,-2456.95,0.00032876,2]
[421478816,1777740682000,-500.0,0.00032876,2]
[421478811,1777740682000,-632.63533048,0.00032876,2]
[421478810,1777740682000,-523.46,0.00032876,2]
[421478812,1777740682000,-500.0,0.00032876,2]
[421478817,1777740682000,-500.0,0.00032876,2]
[421478813,1777740682000,-1173.7,0.00032876,2]
[421478830,1777740682000,-500.0,0.00032876,2]
[421478831,1777740682000,-500.0,0.00032876,2]
[421478820,1777740682000,-1086.79,0.00032876,2]
[421478829,1777740682000,-753.25,0.00032876,2]
[421478826,1777740682000,-500.0,0.00032876,2]
[421478827,1777740682000,-1784.19,0.00032876,2]
[421478825,1777740682000,-842.36,0.00032876,2]
[421478828,1777740682000,-549.91,0.00032876,2]
[421478833,1777740682000,-500.0,0.00032876,2]
[421478821,1777740682000,-501.01,0.00032876,2]
[421478822,1777740682000,-508.38,0.00032876,2]
[421478824,1777740682000,-500.0,0.00032876,2]
[421478819,1777740682000,-734.68,0.00032876,2]
[421478823,1777740682000,-500.0,0.00032876,2]
[421478905,1777740683000,-260.67467616,0.00032876,2]
[421478907,1777740683000,-553.67,0.00032876,2]
[421478903,1777740683000,-735.07,0.00032876,2]
[421478900,1777740683000,-568.62,0.00032876,2]
[421478894,1777740683000,-752.6,0.00032876,2]
[421478895,1777740683000,-563.67,0.00032876,2]
[421478896,1777740683000,-550.63,0.00032876,2]
[421478890,1777740683000,-274.39782116,0.00032876,2]
[421478897,1777740683000,-500.0,0.00032876,2]
[421478904,1777740683000,-500.0,0.00032876,2]
[421478899,1777740683000,-746.13,0.00032876,2]
[421478906,1777740683000,-500.0,0.00032876,2]
[421478919,1777740683000,-553.3,0.00032876,2]
[421478909,1777740683000,-3472.2,0.00032876,2]
[421478910,1777740683000,-796.01,0.00032876,2]
[421478912,1777740683000,-500.0,0.00032876,2]
[421478914,1777740683000,-908.85,0.00032876,2]
[421478915,1777740683000,-500.0,0.00032876,2]
[421478913,1777740683000,-500.0,0.00032876,2]
[421478911,1777740683000,-547.54,0.00032876,2]
[421478916,1777740683000,-15155.74,0.00032876,2]
[421478918,1777740683000,-500.0,0.00032876,2]
[421478928,1777740683000,-500.0,0.00032876,2]
[421478930,1777740683000,-500.0,0.00032876,2]
[421478893,1777740683000,-9212.5,0.00032876,2]
[421478908,1777740683000,-724.98,0.00032876,2]
[421478898,1777740683000,-596.49,0.00032876,2]
[421478878,1777740683000,-500.0,0.00032876,2]
[421478902,1777740683000,-501.07,0.00032876,2]
[421478921,1777740683000,-500.0,0.00032876,2]
[421478866,1777740683000,-556.57,0.00032876,2]
[421478865,1777740683000,-517.11,0.00032876,2]
[421478869,1777740683000,-568.44,0.00032876,2]
[421478867,1777740683000,-1045.22,0.00032876,2]
[421478871,1777740683000,-4289.29,0.00032876,2]
[421478868,1777740683000,-500.0,0.00032876,2]
[421478870,1777740683000,-2730.79,0.00032876,2]
[421478872,1777740683000,-500.0,0.00032876,2]
[421478874,1777740683000,-197.44534751,0.00032876,2]
[421478875,1777740683000,-764.49,0.00032876,2]
[421478873,1777740683000,-509.17,0.00032876,2]
[421478877,1777740683000,-500.0,0.00032876,2]
[421478876,1777740683000,-500.0,0.00032876,2]
[421478888,1777740683000,-500.0,0.00032876,2]
[421478883,1777740683000,-692.22,0.00032876,2]
[421478880,1777740683000,-500.0,0.00032876,2]
[421478879,1777740683000,-500.0,0.00032876,2]
[421478882,1777740683000,-566.11,0.00032876,2]
[421478885,1777740683000,-500.0,0.00032876,2]
[421478881,1777740683000,-500.0,0.00032876,2]
[421478884,1777740683000,-1494.83,0.00032876,2]
[421478886,1777740683000,-500.0,0.00032876,2]
[421478887,1777740683000,-568.25,0.00032876,2]
[421478889,1777740683000,-500.0,0.00032876,2]
[421478901,1777740683000,-25647.26,0.00032876,2]
[421478891,1777740683000,-517.88,0.00032876,2]
[421478892,1777740683000,-691.06,0.00032876,2]
[421478917,1777740683000,-500.0,0.00032876,2]
[421478929,1777740683000,-500.0,0.00032876,2]
[421478924,1777740683000,-500.0,0.00032876,2]
[421478958,1777740683000,-500.0,0.00032876,2]
[421478966,1777740683000,-656.62,0.00032876,2]
[421478964,1777740683000,-719.82,0.00032876,2]
[421478965,1777740683000,-500.0,0.00032876,2]
[421478968,1777740683000,-500.0,0.00032876,21]
[421478967,1777740683000,-500.0,0.00032876,2]
[421478960,1777740683000,-2406.39,0.00032876,2]
[421478959,1777740683000,-579.77,0.00032876,2]
[421478969,1777740683000,-719.76,0.00032876,2]
[421478970,1777740683000,-500.0,0.00032876,2]
[421478961,1777740683000,-922.85,0.00032876,2]
[421478962,1777740683000,-803.51,0.00032876,2]
[421478952,1777740683000,-634.41,0.00032876,2]
[421478963,1777740683000,-500.0,0.00032876,2]
[421478971,1777740683000,-534.99,0.00032876,2]
[421478974,1777740683000,-500.0,0.00032876,2]
[421478973,1777740683000,-500.0,0.00032876,2]
[421478982,1777740683000,-2471589.67837084,0.000329,2]
[421478975,1777740683000,-500.0,0.00032876,2]
[421478978,1777740683000,-637.14,0.00032876,2]
[421478977,1777740683000,-2332.95,0.00032876,2]
[421478976,1777740683000,-1529.27,0.00032876,2]
[421478979,1777740683000,-568.51,0.00032876,2]
[421478980,1777740683000,-506.66,0.00032876,2]
[421478981,1777740683000,-366.76936238,0.00032895,2]
[421478920,1777740683000,-500.0,0.00032876,2]
[421478972,1777740683000,-724.38,0.00032876,2]
[421478948,1777740683000,-183.8217714,0.00032876,2]
[421478954,1777740683000,-431.92422509,0.00032876,2]
[421478950,1777740683000,-532.12,0.00032876,2]
[421478926,1777740683000,-592.28,0.00032876,2]
[421478922,1777740683000,-2458.58,0.00032876,2]
[421478923,1777740683000,-728.98,0.00032876,2]
[421478927,1777740683000,-500.0,0.00032876,2]
[421478925,1777740683000,-500.0,0.00032876,2]
[421478932,1777740683000,-373.88142343,0.00032876,2]
[421478931,1777740683000,-201.79207195,0.00032876,2]
[421478942,1777740683000,-1318.58,0.00032876,2]
[421478933,1777740683000,-818.91,0.00032876,2]
[421478934,1777740683000,-607.34,0.00032876,2]
[421478935,1777740683000,-658.29,0.00032876,2]
[421478951,1777740683000,-718.35,0.00032876,2]
[421478939,1777740683000,-500.0,0.00032876,2]
[421478943,1777740683000,-450.47813804,0.00032876,21]
[421478938,1777740683000,-500.0,0.00032876,2]
[421478936,1777740683000,-692.94,0.00032876,2]
[421478946,1777740683000,-500.0,0.00032876,2]
[421478949,1777740683000,-181.70555795,0.00032876,2]
[421478940,1777740683000,-807.96,0.00032876,2]
[421478953,1777740683000,-500.0,0.00032876,2]
[421478947,1777740683000,-500.0,0.00032876,2]
[421478944,1777740683000,-683.92,0.00032876,2]
[421478956,1777740683000,-500.0,0.00032876,2]
[421478955,1777740683000,-500.0,0.00032876,2]
[421478945,1777740683000,-500.0,0.00032876,2]
[421478937,1777740683000,-500.0,0.00032876,2]
[421478941,1777740683000,-1905.16,0.00032876,2]
[421478957,1777740683000,-500.0,0.00032876,2]
[421478989,1777740684000,-74246.22503663,0.000329,2]
[421478984,1777740684000,-119.665,0.00032328,2]
[421478983,1777740684000,-380.335,0.00032328,2]
[421478985,1777740684000,-500.0,0.00032493,2]
[421478986,1777740684000,-500.0,0.00032547,2]
[421478988,1777740684000,-500.0,0.00032821,2]
[421478992,1777740684000,-500.0,0.00032602,2]
[421478991,1777740684000,-500.0,0.00032547,2]
[421478995,1777740684000,-6720.0,0.000329,2]
[421478994,1777740684000,-2547.0,0.000329,2]
[421478987,1777740684000,-443.10996341,0.00032602,2]
[421478993,1777740684000,-500.0,0.00032876,2]
[421478990,1777740684000,-500.0,0.00032383,2]
[421478996,1777740685000,-316.03221573,0.00032438,2]
[421478998,1777740685000,-316.03221573,0.00032493,2]
[421478999,1777740685000,-183.96778427,0.00032493,2]
[421478997,1777740685000,-183.96778427,0.00032438,2]
[421479004,1777740685000,-500.0,0.00032657,2]
[421479000,1777740685000,-500.0,0.00032547,2]
[421479003,1777740685000,-96.98381771,0.00032602,2]
[421479001,1777740685000,-500.0,0.00032602,2]
[421479002,1777740685000,-403.01618229,0.00032602,2]
[421479016,1777740685000,-27546.90992002,0.000329,2]
[421479006,1777740685000,-500.0,0.00032657,2]
[421479009,1777740685000,-251.30026847,0.00032767,2]
[421479005,1777740685000,-376.65566181,0.00032657,2]
[421479007,1777740685000,-500.0,0.00032712,2]
[421479014,1777740685000,-36580.88002751,0.000329,2]
[421479013,1777740685000,-26500.91033943,0.000329,2]
[421479012,1777740685000,-500.0,0.00032876,2]
[421479015,1777740685000,-32636.35996505,0.000329,2]
[421479010,1777740685000,-500.0,0.00032767,2]
[421479017,1777740685000,-261.49835,0.000329,2]
[421479008,1777740685000,-500.0,0.00032712,2]
[421479011,1777740685000,-500.0,0.00032821,2]
[421479018,1777740706000,939.86,0.00026725,120]
[421479019,1777740706000,939.86,0.00030066,120]
[421479022,1777740834000,1000.0,0.00026375,120]
[421479023,1777740947000,500.0,0.0002926,120]
[421479024,1777740948000,500.0,0.00029836,120]
[421479026,1777740991000,-158.0,0.0001629,2]
[421479025,1777740991000,-168.08136536,0.0001629,2]
[421479027,1777740991000,-250.0,0.00016364,2]
[421479029,1777740991000,-158.0,0.0001729,2]
[421479030,1777740991000,-300.0,0.00017919,2]
[421479028,1777740991000,-937.6,0.00016438,2]
[421479032,1777740991000,-166.09357382,0.0001829,2]
[421479033,1777740991000,-937.6,0.0001841,2]
[421479034,1777740991000,-189.23161795,0.00019159,2]
[421479035,1777740991000,-151.0,0.0002,2]
[421479036,1777740991000,-226.0,0.0002,2]
[421479037,1777740991000,-829.0,0.0002,2]
[421479031,1777740991000,-250.0,0.00017919,2]
[421479043,1777741449000,-175.93,0.00016712,2]
[421479044,1777741466000,-500.0,0.0001831,2]
[421479046,1777741520000,178.06,0.00026639,120]
[421479052,1777741831000,-157.0,0.0001629,2]
[421479053,1777741831000,-157.0,0.0001729,2]
[421479055,1777741831000,-157.0,0.0001829,2]
[421479056,1777741831000,-478.63084998,0.0001841,2]
[421479054,1777741831000,-211.24302986,0.00017919,2]
[421479057,1777741832000,-302.76915002,0.0001841,2]
[421479061,1777741832000,-205.0,0.0002,2]
[421479058,1777741832000,-157.0,0.0001929,2]
[421479060,1777741832000,-184.0,0.0002,2]
[421479062,1777741832000,-360.0,0.0002,2]
[421479059,1777741832000,-1136.92316179,0.0001972,2]
[421479063,1777741832000,-1214.0616,0.00020068,2]
[421479067,1777741832000,-239.96345012,0.00020289,2]
[421479066,1777741832000,-6201.62654988,0.00020289,2]
[421479068,1777741832000,-172.98826873,0.0002029,2]
[421479070,1777741832000,-193.04828115,0.0002029,2]
[421479064,1777741832000,-1200.0,0.00020289,2]
[421479139,1777741839000,-151.0,0.00021987,2]
[421479134,1777741839000,-500.0,0.00021987,2]
[421479137,1777741839000,-151.0,0.00021987,2]
[421479136,1777741839000,-151.0,0.00021987,2]
[421479138,1777741839000,-151.0,0.00021987,2]
[421479133,1777741839000,-200.0,0.00021987,2]
[421479132,1777741839000,-1118.0,0.0002185,2]
[421479131,1777741839000,-230.84,0.00021173,2]
[421479130,1777741839000,-360.0,0.00021,2]
[421479123,1777741839000,-1118.0,0.00020758,2]
[421479126,1777741839000,-226.0,0.00021,2]
[421479135,1777741839000,-151.0,0.00021987,2]
[421479127,1777741839000,-829.0,0.00021,2]
[421479124,1777741839000,-300.0,0.0002095,2]
[421479125,1777741839000,-957.63,0.00020951,2]
[421479122,1777741839000,-300.0,0.00020757,2]
[421479120,1777741839000,-781.4,0.00020381,2]
[421479118,1777741839000,-923.88,0.00018856,2]
[421479119,1777741839000,-645.70171885,0.0002029,2]
[421479129,1777741839000,-205.0,0.00021,2]
[421479140,1777741839000,-151.0,0.00021987,2]
[421479128,1777741839000,-184.0,0.00021,2]
[421479141,1777741839000,-151.0,0.00021987,2]
[421479142,1777741839000,-151.0,0.00021987,2]
[421479181,1777741839000,-151.0,0.00024,2]
[421479170,1777741839000,-829.0,0.00023,2]
[421479179,1777741839000,-1118.0,0.00023,2]
[421479177,1777741839000,-360.0,0.00023,2]
[421479175,1777741839000,-205.0,0.00023,2]
[421479168,1777741839000,-226.0,0.00023,2]
[421479162,1777741839000,-825.54,0.00022562,2]
[421479164,1777741839000,-420.0,0.00022584,2]
[421479172,1777741839000,-184.0,0.00023,2]
[421479166,1777741839000,-278.0,0.0002279,2]
[421479160,1777741839000,-796.45,0.00022562,2]
[421479158,1777741839000,-241.72011099,0.00022407,2]
[421479148,1777741839000,-829.0,0.00022,2]
[421479150,1777741839000,-184.0,0.00022,2]
[421479156,1777741839000,-781.4,0.00022353,2]
[421479152,1777741839000,-205.0,0.00022,2]
[421479144,1777741839000,-150.0,0.00021999,2]
[421479154,1777741839000,-360.0,0.00022,2]
[421479143,1777741839000,-226.71480827,0.00021987,2]
[421479145,1777741839000,-226.0,0.00022,2]
[421479281,1777741840000,-300.0,0.00027397,2]
[421479279,1777741840000,-525.08,0.00027397,2]
[421479277,1777741840000,-500.0,0.00026868,2]
[421479276,1777741840000,-200.0,0.00026864,2]
[421479278,1777741840000,-152.11,0.00027279,30]
[421479261,1777741840000,-3124.62,0.00026639,2]
[421479258,1777741840000,-152.11,0.00026629,30]
[421479260,1777741840000,-4426.87,0.0002663,2]
[421479254,1777741840000,-4288.85,0.00026605,2]
[421479256,1777741840000,-1118.0,0.00026625,2]
[421479280,1777741840000,-1000.0,0.00027397,20]
[421479264,1777741840000,-2000.0,0.00026672,2]
[421479265,1777741840000,-823.0,0.00026736,2]
[421479290,1777741840000,-150.0,0.00028307,7]
[421479274,1777741840000,-1630.09,0.00026849,2]
[421479270,1777741840000,-200.0,0.0002676,2]
[421479268,1777741840000,-196.59,0.00026745,2]
[421479283,1777741840000,-5450.94,0.00027397,10]
[421479272,1777741840000,-1001.78,0.00026773,2]
[421479285,1777741840000,-4542.45,0.00027397,10]
[421479287,1777741840000,-688.35,0.00027911,2]
[421479297,1777741840000,-1050.0,0.0002841,2]
[421479286,1777741840000,-166.66,0.00027437,2]
[421479296,1777741840000,-150.0,0.00028307,7]
[421479292,1777741840000,-150.0,0.00028307,7]
[421479288,1777741840000,-161.20711471,0.0002806,2]
[421479252,1777741840000,-1000.0,0.00026551,2]
[421479282,1777741840000,-6541.12,0.00027397,10]
[421479250,1777741840000,-4263.37,0.00026494,2]
[421479204,1777741840000,-1204.00680796,0.0002463,2]
[421479244,1777741840000,-781.4,0.00026296,2]
[421479184,1777741840000,-226.0,0.00024,2]
[421479186,1777741840000,-829.0,0.00024,2]
[421479188,1777741840000,-184.0,0.00024,2]
[421479200,1777741840000,-781.4,0.00024324,2]
[421479190,1777741840000,-205.0,0.00024,2]
[421479291,1777741840000,-150.0,0.00028307,7]
[421479194,1777741840000,-1118.0,0.0002415,2]
[421479202,1777741840000,-587.0,0.00024573,2]
[421479192,1777741840000,-360.0,0.00024,2]
[421479206,1777741840000,-688.35,0.00024658,2]
[421479197,1777741840000,-161.42,0.00024324,2]
[421479208,1777741840000,-151.58614892,0.00024658,2]
[421479212,1777741840000,-157.8414555,0.00025,2]
[421479246,1777741840000,-5000.0,0.00026371,2]
[421479210,1777741840000,-152.11,0.00024681,30]
[421479227,1777741840000,-152.11,0.0002533,30]
[421479214,1777741840000,-236.0,0.00025,2]
[421479225,1777741840000,-500.0,0.00025307,2]
[421479219,1777741840000,-200.28654051,0.00025,2]
[421479229,1777741840000,-1118.0,0.00025358,2]
[421479221,1777741840000,-207.77265108,0.00025,2]
[421479231,1777741840000,-3067.11,0.000254,2]
[421479223,1777741840000,-376.0,0.00025,2]
[421479235,1777741840000,-249.92,0.00025766,2]
[421479237,1777741840000,-2000.0,0.00025832,2]
[421479242,1777741840000,-152.11,0.0002598,30]
[421479239,1777741840000,-2000.0,0.00025909,2]
[421479248,1777741840000,-9217.27,0.00026405,2]
[421479216,1777741840000,-847.77367817,0.00025,2]
[421479289,1777741840000,-781.4,0.00028267,2]
[421479233,1777741840000,-150.0,0.00025623,2]
[421479295,1777741840000,-150.0,0.00028307,7]
[421479327,1777741840000,-781.4,0.00030239,2]
[421479335,1777741840000,-151.57988741,0.00030685,30]
[421479331,1777741840000,-161.20711471,0.00030436,2]
[421479334,1777741840000,-151.57988741,0.00030685,2]
[421479328,1777741840000,-192.192843,0.0003024,14]
[421479326,1777741840000,-150.0,0.00030194,7]
[421479355,1777741840000,-184.0,0.00031221,30]
[421479329,1777741840000,-150.0,0.00030404,7]
[421479332,1777741840000,-150.0,0.00030666,7]
[421479338,1777741840000,-400.0,0.000308,11]
[421479337,1777741840000,-150.0,0.00030753,7]
[421479341,1777741840000,-624.664,0.00030858,2]
[421479345,1777741840000,-700.0,0.000309,11]
[421479330,1777741840000,-150.0,0.00030404,7]
[421479347,1777741840000,-150.0,0.00031011,2]
[421479346,1777741840000,-174.16,0.00031,2]
[421479344,1777741840000,-157.5,0.000309,120]
[421479348,1777741840000,-150.0,0.00031103,7]
[421479342,1777741840000,-1351.0,0.00030858,2]
[421479343,1777741840000,-1266.0,0.00030858,2]
[421479356,1777741840000,-160.0,0.00031221,30]
[421479357,1777741840000,-157.0,0.00031221,30]
[421479349,1777741840000,-688.35,0.00031164,2]
[421479350,1777741840000,-159.0,0.00031217,30]
[421479353,1777741840000,-158.0,0.00031217,30]
[421479354,1777741840000,-829.0,0.00031217,30]
[421479351,1777741840000,-226.0,0.00031217,30]
[421479352,1777741840000,-159.0,0.00031217,30]
[421479339,1777741840000,-150.0,0.00030823,7]
[421479336,1777741840000,-200.0,0.000307,11]
[421479340,1777741840000,-3534.0,0.00030858,2]
[421479324,1777741840000,-150.0,0.00030054,7]
[421479333,1777741840000,-150.0,0.00030666,7]
[421479293,1777741840000,-150.0,0.00028307,7]
[421479299,1777741840000,-1660.23238771,0.00028634,2]
[421479298,1777741840000,-300.0,0.0002841,30]
[421479300,1777741840000,-150.0,0.00028656,7]
[421479301,1777741840000,-150.0,0.00028936,7]
[421479302,1777741840000,-150.0,0.00029006,7]
[421479309,1777741840000,-150.0,0.00029355,7]
[421479310,1777741840000,-704.87,0.00029401,2]
[421479303,1777741840000,-690.0,0.0002909,2]
[421479304,1777741840000,-150.0,0.00029093,7]
[421479305,1777741840000,-150.0,0.00029093,7]
[421479307,1777741840000,-161.20711471,0.00029248,2]
[421479308,1777741840000,-150.0,0.00029355,7]
[421479306,1777741840000,-2000.0,0.00029148,2]
[421479294,1777741840000,-150.0,0.00028307,7]
[421479312,1777741840000,-150.0,0.00029534,2]
[421479317,1777741840000,-150.0,0.00029565,7]
[421479321,1777741840000,-150.0,0.00029879,7]
[421479319,1777741840000,-150.0,0.00029879,7]
[421479315,1777741840000,-269.0,0.00029558,10]
[421479316,1777741840000,-192.192842,0.00029563,14]
[421479320,1777741840000,-150.0,0.00029879,7]
[421479325,1777741840000,-150.75276338,0.00030137,5]
[421479314,1777741840000,-425.0,0.00029558,10]
[421479311,1777741840000,-1220.0,0.00029401,2]
[421479323,1777741840000,-160.0,0.00029947,2]
[421479322,1777741840000,-162.41759262,0.00029947,2]
[421479313,1777741840000,-502.0,0.00029558,10]
[421479318,1777741840000,-150.0,0.00029705,7]
[421479378,1777741841000,-244.0,0.00031452,5]
[421479371,1777741841000,-500.0,0.00031452,2]
[421479379,1777741841000,-150.0,0.00031452,30]
[421479374,1777741841000,-507.6433633,0.00031452,2]
[421479381,1777741841000,-150.0,0.00031452,7]
[421479380,1777741841000,-151.86465197,0.00031452,7]
[421479393,1777741841000,-1012.0,0.00031506,2]
[421479383,1777741841000,-166.57642391,0.00031452,7]
[421479384,1777741841000,-153.76515705,0.00031452,7]
[421479390,1777741841000,-1012.0,0.00031506,2]
[421479387,1777741841000,-159.76,0.00031496,2]
[421479372,1777741841000,-150.0,0.00031452,20]
[421479388,1777741841000,-1012.0,0.00031506,2]
[421479382,1777741841000,-158.91744415,0.00031452,7]
[421479370,1777741841000,-500.0,0.00031452,2]
[421479366,1777741841000,-218.49649681,0.00031452,2]
[421479377,1777741841000,-500.0,0.00031452,2]
[421479373,1777741841000,-500.0,0.00031452,2]
[421479376,1777741841000,-568.06015006,0.00031452,2]
[421479369,1777741841000,-500.0,0.00031452,2]
[421479365,1777741841000,-151.0,0.00031449,7]
[421479385,1777741841000,-150.0,0.00031452,7]
[421479364,1777741841000,-6446.88,0.00031441,2]
[421479362,1777741841000,-353.17663828,0.0003136,2]
[421479368,1777741841000,-500.0,0.00031452,2]
[421479363,1777741841000,-159.0,0.000314,5]
[421479367,1777741841000,-500.0,0.00031452,2]
[421479358,1777741841000,-205.0,0.00031221,30]
[421479359,1777741841000,-360.0,0.00031221,30]
[421479360,1777741841000,-192.0659802,0.00031259,2]
[421479375,1777741841000,-500.0,0.00031452,2]
[421479361,1777741841000,-934.92184433,0.0003136,2]
[421479391,1777741841000,-1012.0,0.00031506,2]
[421479389,1777741841000,-1012.0,0.00031506,2]
[421479386,1777741841000,-1558.0,0.0003146,15]
[421479422,1777741841000,-500.0,0.00031506,2]
[421479423,1777741841000,-953.0,0.00031506,2]
[421479421,1777741841000,-338.98207188,0.00031506,2]
[421479419,1777741841000,-500.0,0.00031506,2]
[421479417,1777741841000,-500.0,0.00031506,2]
[421479420,1777741841000,-161.01792812,0.00031506,2]
[421479418,1777741841000,-500.0,0.00031506,2]
[421479414,1777741841000,-500.0,0.00031506,2]
[421479416,1777741841000,-500.0,0.00031506,2]
[421479415,1777741841000,-500.0,0.00031506,2]
[421479412,1777741841000,-1012.0,0.00031506,2]
[421479410,1777741841000,-1007.87859893,0.00031506,2]
[421479408,1777741841000,-188.11675927,0.00031506,2]
[421479411,1777741841000,-4.12140107,0.00031506,2]
[421479413,1777741841000,-1013.49520666,0.00031506,2]
[421479407,1777741841000,-823.88324073,0.00031506,2]
[421479392,1777741841000,-1012.0,0.00031506,2]
[421479405,1777741841000,-1012.0,0.00031506,2]
[421479409,1777741841000,-1012.0,0.00031506,2]
[421479406,1777741841000,-1012.0,0.00031506,2]
[421479395,1777741841000,-1012.0,0.00031506,2]
[421479403,1777741841000,-1012.0,0.00031506,2]
[421479398,1777741841000,-1012.0,0.00031506,2]
[421479394,1777741841000,-1012.0,0.00031506,2]
[421479400,1777741841000,-1012.0,0.00031506,2]
[421479396,1777741841000,-1012.0,0.00031506,2]
[421479397,1777741841000,-1012.0,0.00031506,2]
[421479401,1777741841000,-1012.0,0.00031506,2]
[421479404,1777741841000,-1012.0,0.00031506,2]
[421479399,1777741841000,-1012.0,0.00031506,2]
[421479402,1777741841000,-1012.0,0.00031506,2]
[421479432,1777741842000,-252.82399749,0.00031506,2]
[421479439,1777741842000,-953.0,0.00031506,2]
[421479434,1777741842000,-500.0,0.00031506,2]
[421479428,1777741842000,-500.0,0.00031506,2]
[421479424,1777741842000,-500.0,0.00031506,2]
[421479425,1777741842000,-500.0,0.00031506,2]
[421479427,1777741842000,-500.0,0.00031506,2]
[421479426,1777741842000,-953.0,0.00031506,2]
[421479433,1777741842000,-953.0,0.00031506,2]
[421479429,1777741842000,-7.18627495,0.00031506,2]